bitfinex/quotes_BTCUSD_20250619
["timestamp","ask_amount","ask_price","bid_price","bid_amount"]
[1750354616889,1.25343953,104720.0,104710.0,0.02257641]
[1750354617322,6.12257853,104720.0,104710.0,0.02257641]
[1750354617544,0.19100372,104710.0,104690.0,0.30866623]
[1750354617772,0.19100372,104710.0,104690.0,0.53111543]
[1750354617773,5.09836351,104700.0,104690.0,0.53111543]
[1750354617997,1.22745345,104710.0,104700.0,0.27392369]
[1750354618220,6.11569236,104710.0,104700.0,0.3060837]
[1750354618434,6.09659318,104710.0,104700.0,0.08640901]
[1750354618649,5.47896733,104710.0,104700.0,0.2965327]
[1750354618895,5.91513394,104710.0,104700.0,0.2965327]
[1750354619112,6.10611677,104720.0,104710.0,0.0638]
[1750354619327,4.88823863,104710.0,104700.0,0.26427296]
[1750354619544,0.64627466,104710.0,104700.0,0.29643357]
[1750354619764,0.63672484,104710.0,104700.0,0.31553466]
[1750354619979,0.64627447,104710.0,104700.0,0.31553466]
[1750354620229,0.41881781,104720.0,104710.0,0.21965317]
[1750354620446,5.57517165,104720.0,104710.0,0.30596305]
[1750354620660,5.78525521,104720.0,104710.0,0.29641351]
[1750354620876,5.76615768,104720.0,104710.0,0.29641351]
[1750354622443,5.76615768,104720.0,104710.0,0.30596324]
[1750354622652,5.14853183,104720.0,104710.0,0.30596324]
[1750354622879,5.76615768,104720.0,104710.0,0.30596324]
[1750354623730,5.14853183,104720.0,104710.0,0.31551287]
[1750354624194,5.5751722,104720.0,104710.0,0.32506241]
[1750354624628,5.14853183,104720.0,104710.0,0.32506241]
[1750354624853,5.56562238,104720.0,104710.0,0.32506241]
[1750354625081,0.37566237,104730.0,104720.0,0.29216457]
[1750354625082,0.67518585,104730.0,104720.0,0.29216457]
[1750354625294,0.07665535,104730.0,104720.0,0.31477445]
[1750354625768,0.08620325,104730.0,104720.0,0.31477445]
[1750354625992,0.7038291,104730.0,104720.0,0.31477445]
[1750354626217,0.71337718,104730.0,104720.0,0.31477445]
[1750354626440,0.1052996,104730.0,104720.0,0.305226]
[1750354626667,0.48671921,104730.0,104720.0,0.29567728]
[1750354626911,0.90434506,104730.0,104720.0,0.30522609]
[1750354627556,0.27717149,104730.0,104720.0,0.29567728]
[1750354627774,1.09479734,104730.0,104720.0,0.29567728]
[1750354627988,0.89479734,104730.0,104720.0,0.30522609]
[1750354628232,0.89479734,104730.0,104720.0,0.28612838]
[1750354628444,0.20053466,104720.0,104710.0,0.19100274]
[1750354628660,0.41965381,104710.0,104700.0,0.45474396]
[1750354628876,0.84682948,104710.0,104700.0,0.3129409]
[1750354629551,0.63672558,104710.0,104700.0,0.3129409]
[1750354629761,0.63672521,104710.0,104700.0,0.32249135]
[1750354629974,0.64627521,104710.0,104700.0,0.32249135]
[1750354630182,0.02864936,104710.0,104700.0,0.32249135]
[1750354630400,0.61762585,104710.0,104700.0,0.39878874]
[1750354630636,6.0368486,104720.0,104710.0,0.2005539]
[1750354630848,0.01909945,104710.0,104700.0,0.27122296]
[1750354631064,0.64627503,104710.0,104700.0,0.29384975]
[1750354631497,0.64627494,104710.0,104700.0,0.29384975]
[1750354631711,0.01909918,104710.0,104700.0,0.36728298]
[1750354631944,0.02864918,104710.0,104700.0,0.36728298]
[1750354632157,0.64627494,104710.0,104700.0,0.36728298]
[1750354632375,0.64627485,104710.0,104700.0,0.29384975]
[1750354632599,0.6271753,104710.0,104700.0,0.29384975]
[1750354632812,1.23481795,104720.0,104710.0,0.21010363]
[1750354633029,6.10395695,104720.0,104710.0,0.29613042]
[1750354633277,0.01909608,104730.0,104720.0,0.21963219]
[1750354633487,6.10393653,104730.0,104720.0,0.28483219]
[1750354633698,5.91296856,104730.0,104720.0,0.30747605]
[1750354633911,6.1039358,104730.0,104720.0,0.08784386]
[1750354634128,4.88823453,104730.0,104720.0,0.29792724]
[1750354634344,5.77348388,104730.0,104720.0,0.30747596]
[1750354634630,5.75438835,104730.0,104720.0,0.28837843]
[1750354635059,5.75438835,104730.0,104720.0,0.29792743]
[1750354635275,5.74484036,104730.0,104720.0,0.28837861]
[1750354635491,5.68728036,104730.0,104720.0,0.28837861]
[1750354635702,5.74484036,104730.0,104720.0,0.2979277]
[1750354636762,5.74484036,104730.0,104720.0,0.30747651]
[1750354636980,5.74484036,104730.0,104720.0,0.2979277]
[1750354637669,5.12721451,104730.0,104720.0,0.2979277]
[1750354637885,5.74484036,104730.0,104720.0,0.28837861]
[1750354638103,5.74484036,104730.0,104720.0,0.08784386]
[1750354638319,5.73529209,104730.0,104720.0,0.08784386]
[1750354638537,5.73529209,104730.0,104720.0,0.28837861]
[1750354638745,5.73529209,104730.0,104720.0,0.29792779]
[1750354638957,5.73529209,104730.0,104720.0,0.30747688]
[1750354639170,5.74484027,104730.0,104720.0,0.31702588]
[1750354639383,5.74484027,104730.0,104720.0,0.30747679]
[1750354639614,5.54408636,104730.0,104720.0,0.3170256]
[1750354639835,5.54408727,104730.0,104720.0,0.3170256]
[1750354640066,5.54408727,104730.0,104720.0,0.32657432]
[1750354640492,5.54408727,104730.0,104720.0,0.3170256]
[1750354641812,5.36266793,104730.0,104720.0,0.32657423]
[1750354642032,5.56318353,104730.0,104720.0,0.32657423]
[1750354642294,5.36066793,104730.0,104720.0,0.32657423]
[1750354642503,5.56118344,104730.0,104720.0,0.3170256]
[1750354642931,5.55163554,104730.0,104720.0,0.30747679]
[1750354643373,5.55163554,104730.0,104720.0,0.31702569]
[1750354643605,5.55163554,104730.0,104720.0,0.32657395]
[1750354644661,0.88324954,104730.0,104720.0,0.31702523]
[1750354645581,0.88324954,104730.0,104720.0,0.30747642]
[1750354646016,0.88324954,104730.0,104720.0,0.31702523]
[1750354646577,0.26562369,104730.0,104720.0,0.31702523]
[1750354646803,0.69228193,104730.0,104720.0,0.3983907]
[1750354647019,0.69228193,104730.0,104720.0,0.32657386]
[1750354647687,0.89279744,104730.0,104720.0,0.32657386]
[1750354647909,0.7018302,104730.0,104720.0,0.32657386]
[1750354648348,0.70182956,104730.0,104720.0,0.32657386]
[1750354648573,0.90234516,104730.0,104720.0,0.31702523]
[1750354648997,0.90234516,104730.0,104720.0,0.32657395]
[1750354649902,0.90182956,104730.0,104720.0,0.3265734]
[1750354650116,0.64626956,104730.0,104720.0,0.5059334]
[1750354650332,0.70182956,104730.0,104720.0,0.3265734]
[1750354650552,0.70182956,104730.0,104720.0,0.5059334]
[1750354650762,0.70182956,104730.0,104720.0,0.49638468]
[1750354650981,0.3703135,104740.0,104720.0,0.49638468]
[1750354650982,5.27399119,104740.0,104730.0,0.21006368]
[1750354651226,5.27399119,104740.0,104730.0,0.29350773]
[1750354651227,5.008386,104740.0,104730.0,0.29350773]
[1750354651494,4.668386,104740.0,104730.0,0.43610184]
[1750354651725,1.00865713,104760.0,104750.0,0.2430159]
[1750354651726,4.67793089,104760.0,104750.0,0.2430159]
[1750354651937,0.2,104760.0,104750.0,0.48482566]
[1750354652157,4.668386,104760.0,104750.0,0.56573464]
[1750354652410,0.06510407,104770.0,104760.0,0.28284834]
[1750354652627,0.06510435,104770.0,104760.0,0.3054922]
[1750354652883,5e-05,104780.0,104770.0,0.02863304]
[1750354653094,5e-05,104780.0,104770.0,0.45437123]
[1750354653095,0.10487209,104780.0,104770.0,0.45437123]
[1750354653321,0.20959316,104780.0,104770.0,0.48467123]
[1750354653541,5e-05,104780.0,104770.0,0.56073963]
[1750354653799,0.20005,104780.0,104770.0,0.56073963]
[1750354654025,0.20005,104780.0,104770.0,0.48467123]
[1750354654269,5e-05,104780.0,104770.0,0.48467123]
[1750354654701,0.00959307,104780.0,104770.0,0.48467123]
[1750354654924,0.22909987,104780.0,104770.0,0.30547142]
[1750354655119,1.21061544,104780.0,104770.0,0.02264386]
[1750354655384,4.668386,104770.0,104760.0,0.48318225]
[1750354655605,5e-05,104780.0,104770.0,0.2909719]
[1750354655817,0.00959298,104780.0,104770.0,0.2909719]
[1750354656030,0.20959307,104780.0,104770.0,0.31352809]
[1750354656245,0.00959307,104780.0,104770.0,0.31352809]
[1750354656459,0.20959316,104780.0,104770.0,0.31352809]
[1750354656668,0.01913651,104780.0,104770.0,0.31352809]
[1750354657302,0.82763912,104780.0,104770.0,0.08445619]
[1750354657514,0.81809568,104780.0,104760.0,0.45299603]
[1750354657724,4.87836884,104770.0,104760.0,0.44345114]
[1750354657942,0.21001318,104780.0,104770.0,0.2099833]
[1750354658158,5.50556819,104780.0,104770.0,0.21952756]
[1750354658374,0.02863286,104770.0,104760.0,0.44345114]
[1750354658815,0.64625871,104770.0,104760.0,0.44345114]
[1750354659036,0.64625807,104770.0,104760.0,0.45299667]
[1750354659246,0.6558026,104770.0,104760.0,0.45295667]
[1750354659463,0.65580333,104770.0,104760.0,0.45295667]
[1750354660168,0.23817748,104770.0,104760.0,0.45295667]
[1750354660385,0.83715404,104770.0,104760.0,0.42432089]
[1750354660598,0.83715404,104770.0,104760.0,0.45158317]
[1750354660806,0.01908915,104770.0,104760.0,0.47067324]
[1750354661020,0.636715,104770.0,104760.0,0.47067324]
[1750354661233,0.01908879,104770.0,104760.0,0.47067324]
[1750354661448,0.21952783,104770.0,104760.0,0.47067324]
[1750354661659,0.21452783,104770.0,104760.0,0.47067324]
[1750354662087,0.01408879,104770.0,104760.0,0.47067324]
[1750354663166,0.21908824,104770.0,104760.0,0.53778745]
[1750354663355,0.01908824,104770.0,104760.0,0.53778745]
[1750354663819,0.34959335,104780.0,104770.0,0.29157172]
[1750354664042,0.36868004,104780.0,104770.0,0.29157172]
[1750354664473,0.37822366,104780.0,104770.0,0.47073172]
[1750354664662,0.36867995,104780.0,104770.0,0.47073172]
[1750354664907,0.35913651,104780.0,104770.0,0.47073172]
[1750354665401,0.34005,104780.0,104770.0,0.54737854]
[1750354665637,0.35913642,104780.0,104770.0,0.47073172]
[1750354666070,0.35913632,104780.0,104770.0,0.47073172]
[1750354666288,0.34959307,104780.0,104770.0,0.47073172]
[1750354666525,0.35913642,104780.0,104770.0,0.47073172]
[1750354666736,0.35913642,104780.0,104770.0,0.46118765]
[1750354666737,0.56909969,104780.0,104770.0,0.46118765]
[1750354666947,0.38776737,104780.0,104770.0,0.46118765]
[1750354667375,0.57864349,104780.0,104770.0,0.46118765]
[1750354667583,0.56910042,104780.0,104770.0,0.46118783]
[1750354667799,0.3686805,104780.0,104770.0,0.4707319]
[1750354668219,0.35913679,104780.0,104770.0,0.4707319]
[1750354668431,0.35913679,104780.0,104770.0,0.2915719]
[1750354668682,0.36868041,104780.0,104770.0,0.4706119]
[1750354668887,0.55955653,104780.0,104770.0,0.4706119]
[1750354669104,0.56910033,104780.0,104770.0,0.4706119]
[1750354669318,0.56910033,104780.0,104770.0,0.46106783]
[1750354669556,0.56910033,104780.0,104770.0,0.47061209]
[1750354669767,0.19089433,104770.0,104760.0,0.26295173]
[1750354670008,0.83715341,104770.0,104760.0,0.29501458]
[1750354670261,0.82760933,104770.0,104760.0,0.25341256]
[1750354670500,0.20998348,104770.0,104760.0,0.28204861]
[1750354670756,1.14855197,104780.0,104770.0,0.19089433]
[1750354670962,5.27395927,104780.0,104770.0,0.28432756]
[1750354671173,5.27395927,104780.0,104770.0,0.2747833]
[1750354671385,5.26441583,104780.0,104770.0,0.26523895]
[1750354671602,0.59602983,104780.0,104770.0,0.26523895]
[1750354671819,0.87360568,104780.0,104770.0,0.26523895]
[1750354672032,0.87360568,104780.0,104770.0,0.27478348]
[1750354672243,0.25597983,104780.0,104770.0,0.28432774]
[1750354672465,4.868386,104780.0,104770.0,0.64104514]
[1750354672690,0.00026,104790.0,104780.0,0.28430643]
[1750354672918,0.00026,104790.0,104780.0,1.46428741]
[1750354673137,0.00026,104790.0,104780.0,0.84666156]
[1750354673336,0.00026,104790.0,104780.0,0.94193141]
[1750354673584,0.00026,104790.0,104780.0,1.55955726]
[1750354673803,0.00026,104790.0,104780.0,0.94193141]
[1750354674033,0.00026,104790.0,104780.0,1.55955726]
[1750354674257,0.02,104800.0,104790.0,0.36862758]
[1750354674478,0.02,104800.0,104790.0,1.66193056]
[1750354674706,0.02,104800.0,104790.0,1.04430471]
[1750354674923,0.02,104800.0,104790.0,0.90316753]
[1750354675144,0.02,104800.0,104790.0,1.04458471]
[1750354675629,0.02,104800.0,104790.0,0.92116815]
[1750354675841,0.02,104800.0,104790.0,0.74208815]
[1750354676048,0.02,104800.0,104790.0,0.92112815]
[1750354676508,0.02,104800.0,104790.0,0.40208815]
[1750354676724,0.02,104800.0,104790.0,0.60919486]
[1750354676931,0.02,104800.0,104790.0,0.70446471]
[1750354677809,0.02,104800.0,104790.0,0.60919486]
[1750354678027,0.02,104800.0,104790.0,0.43019486]
[1750354678249,0.02,104800.0,104790.0,0.60899486]
[1750354679537,0.02,104800.0,104790.0,0.43019486]
[1750354679754,0.02,104800.0,104790.0,0.60887486]
[1750354679960,0.02,104800.0,104790.0,0.70414471]
[1750354680911,0.02954125,104800.0,104790.0,0.49555165]
[1750354681158,0.02,104800.0,104790.0,0.49555165]
[1750354681362,0.02,104800.0,104790.0,0.43973729]
[1750354681500,0.02,104800.0,104790.0,0.61893729]
[1750354681717,0.02954125,104800.0,104790.0,0.65664011]
[1750354681925,0.04862466,104800.0,104790.0,0.43973729]
[1750354682127,0.86663218,104800.0,104790.0,0.44939621]
[1750354682375,0.66625051,104800.0,104790.0,0.45893846]
[1750354682620,0.23946435,104800.0,104790.0,0.44931621]
[1750354682826,0.04862466,104800.0,104790.0,0.4212095]
[1750354683048,0.02,104800.0,104790.0,0.59083068]
[1750354683254,0.02,104800.0,104790.0,0.70474333]
[1750354683462,0.02,104800.0,104790.0,0.61893739]
[1750354683665,0.02,104800.0,104790.0,0.61889739]
[1750354684427,0.03908259,104800.0,104790.0,0.51407621]
[1750354684629,0.04862411,104800.0,104790.0,0.52361846]
[1750354685033,0.02954116,104800.0,104790.0,0.52361846]
[1750354685239,0.03908259,104800.0,104790.0,0.52361846]
[1750354685510,0.05816601,104800.0,104790.0,0.52361846]
[1750354685755,0.02,104800.0,104790.0,0.61889739]
[1750354685971,0.02,104800.0,104790.0,1.35050011]
[1750354686205,0.02,104800.0,104790.0,0.73243426]
[1750354686653,0.66625015,104800.0,104790.0,0.55137903]
[1750354686890,0.65670844,104800.0,104790.0,0.52321846]
[1750354687124,0.05816573,104800.0,104790.0,0.52317846]
[1750354687336,0.2585474,104800.0,104790.0,0.34445846]
[1750354687555,0.2585474,104800.0,104790.0,0.51363621]
[1750354687780,0.02,104800.0,104790.0,0.61845739]
[1750354688003,0.02,104800.0,104790.0,0.43973739]
[1750354688270,0.02,104800.0,104790.0,0.61833739]
[1750354688529,0.04862466,104800.0,104790.0,0.61821739]
[1750354688758,0.04862466,104800.0,104790.0,0.52293855]
[1750354688994,0.03908286,104800.0,104790.0,0.34445855]
[1750354689251,0.03908286,104800.0,104790.0,0.49483184]
[1750354689774,0.04862466,104800.0,104790.0,0.46243193]
[1750354690186,0.90653823,104800.0,104790.0,0.21338164]
[1750354690398,0.84754886,104800.0,104790.0,0.41066697]
[1750354690616,0.82846554,104800.0,104790.0,0.21338164]
[1750354690851,0.85709084,104800.0,104790.0,0.24200949]
[1750354691060,0.85709084,104800.0,104790.0,0.23246715]
[1750354691271,0.84754932,104800.0,104790.0,0.02252374]
[1750354691484,0.84754932,104800.0,104790.0,0.22292444]
[1750354691696,0.83800752,104800.0,104790.0,0.02252374]
[1750354692370,0.20040061,104790.0,104780.0,0.001]
[1750354692577,6.03753139,104790.0,104780.0,0.001]
[1750354693321,6.06427296,104790.0,104780.0,0.001]
[1750354693551,6.24235296,104790.0,104780.0,0.001]
[1750354693777,6.24227296,104790.0,104780.0,0.001]
[1750354694021,6.24228449,104790.0,104780.0,0.001]
[1750354694487,6.25682534,104790.0,104780.0,0.001]
[1750354695877,6.23898994,104790.0,104780.0,0.001]
[1750354696130,6.25682795,104790.0,104780.0,0.001]
[1750354696621,6.0100471,104790.0,104780.0,0.001]
[1750354696859,6.2417671,104790.0,104780.0,0.001]
[1750354697099,6.22392996,104790.0,104780.0,0.001]
[1750354697344,0.82762938,104760.0,104750.0,0.28412241]
[1750354697808,0.21000353,104760.0,104750.0,0.27112339]
[1750354698086,4.88797979,104780.0,104770.0,0.20043895]
[1750354698448,5.19929379,104780.0,104770.0,0.20043895]
[1750354698453,0.20998284,104770.0,104760.0,0.27349514]
[1750354698776,0.81806471,104770.0,104760.0,0.08464653]
[1750354698985,0.81806471,104770.0,104760.0,0.25301256]
[1750354699205,0.81806471,104770.0,104760.0,0.23185818]
[1750354699426,0.19091256,104760.0,104750.0,0.27392321]
[1750354699640,0.21909052,104760.0,104750.0,0.30600404]
[1750354699876,0.6462619,104760.0,104750.0,0.30600404]
[1750354700103,0.85626525,104760.0,104750.0,0.3060051]
[1750354700548,0.01908988,104760.0,104750.0,0.315551]
[1750354700779,0.03818058,104760.0,104750.0,0.315551]
[1750354701028,0.02863514,104760.0,104750.0,0.315551]
[1750354701245,0.01908988,104760.0,104750.0,0.315551]
[1750354701489,0.0381803,104760.0,104750.0,0.315551]
[1750354701729,0.22909286,104760.0,104750.0,0.29645911]
[1750354701954,0.41954879,104760.0,104750.0,0.28691312]
[1750354702197,0.83717464,104760.0,104750.0,0.30600546]
[1750354702644,1.02762947,104760.0,104750.0,0.29645938]
[1750354702876,0.81808403,104760.0,104750.0,0.28691312]
[1750354703107,0.01909225,104750.0,104740.0,0.45062308]
[1750354703371,0.83719568,104750.0,104740.0,0.28631826]
[1750354703621,0.82764942,104750.0,104740.0,0.0329]
[1750354703848,5.54927542,104750.0,104740.0,0.0001]
[1750354704072,5.88927542,104750.0,104740.0,0.0001]
[1750354704315,5.98555435,104750.0,104740.0,0.0001]
[1750354704539,6.01855435,104750.0,104740.0,0.0001]
[1750354704797,6.04725035,104750.0,104740.0,0.0001]
[1750354705490,5.4296245,104750.0,104740.0,0.0001]
[1750354705708,6.01425035,104750.0,104740.0,0.0001]
[1750354707346,0.1908579,104790.0,104740.0,0.0001]
[1750354707347,0.04846602,104800.0,104740.0,0.96815379]
[1750354707579,0.05823816,104800.0,104780.0,0.28619841]
[1750354707808,0.02,104800.0,104790.0,0.38862341]
[1750354708021,0.02,104800.0,104790.0,0.40770828]
[1750354708242,0.22,104800.0,104790.0,0.39816594]
[1750354708494,0.22,104800.0,104780.0,0.2766547]
[1750354708495,0.83762585,104800.0,104780.0,0.49326248]
[1750354708736,0.67086585,104790.0,104770.0,0.19086265]
[1750354708957,3.443185,104780.0,104770.0,0.24196699]
[1750354709198,3.443185,104780.0,104770.0,0.43051152]
[1750354709401,3.443185,104780.0,104770.0,0.25151152]
[1750354709642,3.443185,104780.0,104770.0,0.43063152]
[1750354711279,0.05324,104790.0,104770.0,0.56742166]
[1750354711491,0.58932,104800.0,104790.0,0.21948548]
[1750354711701,0.64256,104800.0,104790.0,0.21948548]
[1750354711907,0.64256,104800.0,104790.0,0.24811441]
[1750354712116,0.58932,104800.0,104790.0,0.42711441]
[1750354712762,0.64256,104800.0,104790.0,0.42711441]
[1750354713181,0.58932,104800.0,104790.0,0.42711441]
[1750354713394,0.64256,104800.0,104790.0,0.42711441]
[1750354713901,0.6603574,104800.0,104790.0,0.42711441]
[1750354714352,0.6071174,104800.0,104790.0,0.42711441]
[1750354714560,0.64256,104800.0,104790.0,0.42711441]
[1750354715238,0.02,104800.0,104790.0,0.42711441]
[1750354715456,0.02,104800.0,104790.0,0.60807713]
[1750354715675,0.02,104800.0,104790.0,0.63675013]
[1750354717334,0.02,104800.0,104790.0,0.63579013]
[1750354717583,0.02,104800.0,104790.0,0.2705982]
[1750354717916,0.07324,104800.0,104790.0,0.4486382]
[1750354718999,0.07324,104800.0,104790.0,0.2705982]
[1750354719217,0.07324,104800.0,104790.0,0.4483182]
[1750354719911,0.71949015,104800.0,104790.0,0.23242711]
[1750354720164,4.16267515,104800.0,104790.0,0.20040079]
[1750354720413,4.36305664,104800.0,104790.0,0.20040079]
[1750354720652,4.35351621,104800.0,104790.0,0.1908579]
[1750354720864,0.02862767,104790.0,104780.0,0.41004706]
[1750354721077,0.6271681,104790.0,104780.0,0.39710643]
[1750354721294,0.27362167,104800.0,104790.0,0.20994323]
[1750354721295,0.03908314,104800.0,104790.0,0.20994323]
[1750354721513,3.463185,104800.0,104790.0,0.21948548]
[1750354721763,0.07324,104800.0,104790.0,0.21948548]
[1750354721990,0.07324,104800.0,104790.0,0.24197929]
[1750354722207,0.02,104800.0,104790.0,0.24197929]
[1750354722433,0.08278116,104800.0,104790.0,0.2419697]
[1750354722657,0.10186384,104800.0,104790.0,0.21948548]
[1750354722884,0.12665065,104800.0,104790.0,0.21948548]
[1750354723107,4.34397405,104800.0,104780.0,0.23244392]
[1750354723339,0.82756871,104790.0,104780.0,0.23244502]
[1750354723557,0.83671045,104790.0,104780.0,0.22904996]
[1750354723792,0.62716801,104790.0,104780.0,0.22904996]
[1750354724020,0.61762585,104790.0,104780.0,0.22904996]
[1750354724280,0.62716801,104790.0,104780.0,0.22904996]
[1750354724754,0.02,104800.0,104790.0,0.26300061]
[1750354724986,0.028727,104830.0,104820.0,0.28396352]
[1750354724987,5e-05,104830.0,104820.0,0.28396352]
[1750354725203,5e-05,104830.0,104820.0,1.17258745]
[1750354725423,0.0116337,104840.0,104830.0,0.28170174]
[1750354725669,0.0116337,104840.0,104830.0,0.48227901]
[1750354726117,0.0116337,104840.0,104830.0,0.60561929]
[1750354726386,0.50209,104850.0,104840.0,0.28128081]
[1750354726604,0.50209,104850.0,104840.0,1.11053775]
[1750354726856,0.49253662,104850.0,104840.0,1.7553638]
[1750354727091,0.48298324,104850.0,104840.0,1.13773795]
[1750354727349,0.48298324,104850.0,104840.0,1.11047346]
[1750354727601,0.47342986,104850.0,104840.0,1.05391922]
[1750354727851,0.47342986,104850.0,104840.0,0.43629337]
[1750354728123,0.47342986,104850.0,104840.0,0.66948292]
[1750354728359,0.36593963,104850.0,104840.0,1.9333238]
[1750354728570,0.35638625,104850.0,104840.0,1.11841361]
[1750354728795,0.35638625,104850.0,104840.0,1.29637361]
[1750354729011,0.34683287,104850.0,104840.0,1.29637361]
[1750354729224,0.34683287,104850.0,104840.0,1.91399946]
[1750354729462,0.33728696,104850.0,104840.0,1.91399946]
[1750354729697,0.32774105,104850.0,104840.0,1.29637361]
[1750354729937,0.32774105,104850.0,104840.0,0.61420691]
[1750354730148,0.32774105,104850.0,104840.0,1.23163276]
[1750354730372,0.32774105,104850.0,104840.0,1.22228097]
[1750354730591,0.32774083,104850.0,104840.0,1.22228097]
[1750354731264,0.32774083,104850.0,104840.0,1.04452097]
[1750354731484,0.32774083,104850.0,104840.0,1.22204097]
[1750354731703,0.32774083,104850.0,104840.0,1.19154097]
[1750354732141,0.32774083,104850.0,104840.0,1.22875267]
[1750354732363,0.32774083,104850.0,104840.0,1.19134908]
[1750354732833,0.32774083,104850.0,104840.0,0.36496323]
[1750354733063,0.32774083,104850.0,104840.0,0.51427701]
[1750354734439,0.32274083,104850.0,104840.0,0.51399701]
[1750354735331,0.32274083,104850.0,104840.0,0.54184323]
[1750354735782,0.32274083,104850.0,104840.0,0.36496323]
[1750354736000,0.32274083,104850.0,104840.0,0.54164323]
[1750354736442,0.32274083,104850.0,104840.0,0.36496323]
[1750354736908,0.32274083,104850.0,104840.0,0.54164323]
[1750354737411,0.32274083,104850.0,104840.0,0.57887313]
[1750354737854,0.32274083,104850.0,104840.0,0.54164323]
[1750354738541,0.32274083,104850.0,104840.0,1.225207]
[1750354738767,0.32274083,104850.0,104840.0,1.2197771]
[1750354738989,0.32274083,104850.0,104840.0,1.19572286]
[1750354739451,0.32274083,104850.0,104840.0,1.27112851]
[1750354739890,0.26546801,104850.0,104840.0,1.19572286]
[1750354740115,0.26546801,104850.0,104840.0,1.27112851]
[1750354740340,0.26546801,104850.0,104840.0,1.95329521]
[1750354741499,0.17956652,104850.0,104840.0,1.95329521]
[1750354742664,0.17956652,104850.0,104840.0,2.29329521]
[1750354743337,0.17956652,104850.0,104840.0,2.26788956]
[1750354743612,0.06503853,104850.0,104840.0,2.32100956]
[1750354743842,0.06503853,104850.0,104840.0,1.08587786]
[1750354744070,0.06503853,104850.0,104840.0,0.50783482]
[1750354744312,0.06503853,104850.0,104840.0,0.33711701]
[1750354744537,0.06503853,104850.0,104840.0,0.37434587]
[1750354744793,0.7434753,104850.0,104840.0,0.36480817]
[1750354745021,0.95588765,104850.0,104840.0,0.05038697]
[1750354745258,0.95588765,104850.0,104840.0,0.23230056]
[1750354745483,0.9463504,104850.0,104840.0,0.02245727]
[1750354745696,1.04162025,104850.0,104840.0,0.02245727]
[1750354746396,0.9463504,104850.0,104840.0,0.02245727]
[1750354747061,1.03658494,104850.0,104840.0,0.02245727]
[1750354748689,1.03658494,104850.0,104840.0,0.21322415]
[1750354748909,0.31918721,104850.0,104840.0,0.02245727]
[1750354749122,1.0801676,104850.0,104840.0,0.02245727]
[1750354749784,1.17543745,104850.0,104840.0,0.02245727]
[1750354750458,1.0801676,104850.0,104840.0,0.02245727]
[1750354750690,0.37230721,104850.0,104840.0,0.02245727]
[1750354750910,1.0801676,104850.0,104840.0,0.02245727]
[1750354751113,0.37230721,104850.0,104840.0,0.02245727]
[1750354751336,1.0801676,104850.0,104840.0,0.02245727]
[1750354752251,1.4201676,104850.0,104840.0,0.02245727]
[1750354752747,0.52155853,104850.0,104840.0,0.21322415]
[1750354752975,0.06503853,104850.0,104840.0,0.57855557]
[1750354753194,0.06503853,104850.0,104840.0,0.56921577]
[1750354754072,0.06503853,104850.0,104840.0,0.51339701]
[1750354754292,0.06503853,104850.0,104840.0,0.58777397]
[1750354754723,0.08411202,104850.0,104840.0,0.58777397]
[1750354754925,0.08411193,104850.0,104840.0,0.58777397]
[1750354755148,0.30347217,104850.0,104840.0,0.5685382]
[1750354755363,1.35322219,104850.0,104840.0,0.36823316]
[1750354755584,1.38472219,104850.0,104840.0,0.1739475]
[1750354755803,1.47999204,104850.0,104840.0,0.07866857]
[1750354756018,0.6768618,104850.0,104840.0,0.07866857]
[1750354756570,0.02861338,104840.0,104830.0,0.39524121]
[1750354756795,0.03815154,104840.0,104830.0,0.50005893]
[1750354757019,0.22891842,104840.0,104830.0,0.30514162]
[1750354757239,0.23845676,104840.0,104830.0,0.48098162]
[1750354757452,0.26211924,104840.0,104830.0,0.48098162]
[1750354757670,0.25258145,104840.0,104830.0,0.4902407]
[1750354757889,0.25258145,104840.0,104830.0,0.32421949]
[1750354758111,0.25258145,104840.0,104830.0,0.48070181]
[1750354758341,0.25258145,104840.0,104830.0,0.49977949]
[1750354758555,0.25258145,104840.0,104830.0,0.49973949]
[1750354758995,0.25258145,104840.0,104830.0,0.4902007]
[1750354759421,0.25258145,104840.0,104830.0,0.46158376]
[1750354759422,0.60560522,104840.0,104830.0,0.46158376]
[1750354759655,0.62131898,104840.0,104830.0,0.47112283]
[1750354759872,0.62131898,104840.0,104830.0,0.30514172]
[1750354760073,0.44008999,104840.0,104830.0,0.31468033]
[1750354760423,0.649933,104840.0,104830.0,0.31468051]
[1750354761033,0.64039521,104840.0,104830.0,0.28606376]
[1750354761237,0.00953898,104830.0,104820.0,0.21942303]
[1750354761446,1.31964103,104840.0,104830.0,0.20032424]
[1750354761646,0.62131889,104840.0,104830.0,0.20986349]
[1750354761854,0.4496276,104840.0,104830.0,0.22894099]
[1750354762273,0.45916594,104840.0,104830.0,0.22894117]
[1750354762483,0.4496276,104840.0,104830.0,0.23847987]
[1750354762724,0.46870419,104840.0,104830.0,0.23847987]
[1750354762932,0.64039539,104840.0,104830.0,0.21940238]
[1750354763138,0.69355539,104840.0,104830.0,0.22894108]
[1750354764409,0.69355539,104840.0,104830.0,0.29811188]
[1750354764638,0.69355539,104840.0,104830.0,0.28892931]
[1750354764811,0.69355539,104840.0,104830.0,0.29846801]
[1750354765213,0.67784163,104840.0,104830.0,0.2609683]
[1750354765418,0.42437641,104840.0,104830.0,0.23847987]
[1750354765627,0.42061356,104840.0,104830.0,0.23847923]
[1750354765830,0.43015172,104840.0,104830.0,0.23847923]
[1750354766090,0.43968997,104840.0,104830.0,0.23847923]
[1750354766295,0.6367179,104840.0,104830.0,0.21940192]
[1750354766708,0.65748002,104840.0,104830.0,0.20986313]
[1750354767118,0.64794195,104840.0,104830.0,0.20986331]
[1750354767323,0.64794195,104840.0,104830.0,0.22894118]
[1750354767527,1.30380234,104840.0,104830.0,0.21940229]
[1750354767731,1.35580234,104840.0,104830.0,0.23847997]
[1750354767952,1.35580234,104840.0,104820.0,0.34282637]
[1750354767953,0.00953898,104830.0,104820.0,0.34282637]
[1750354768162,0.01907932,104820.0,104810.0,0.28506716]
[1750354768370,0.72693971,104820.0,104810.0,0.33330613]
[1750354768575,0.73647969,104820.0,104810.0,0.50842613]
[1750354768779,0.76807969,104820.0,104810.0,0.52750782]
[1750354768998,0.6849388,104820.0,104810.0,0.52750782]
[1750354769206,0.67539873,104820.0,104810.0,0.35238782]
[1750354769416,0.67539873,104820.0,104810.0,0.52738782]
[1750354769626,0.67539864,104820.0,104810.0,0.52738782]
[1750354769825,0.66585875,104820.0,104810.0,0.52738782]
[1750354770237,0.04113952,104820.0,104810.0,0.52738782]
[1750354770440,0.62471895,104820.0,104810.0,0.52738782]
[1750354770649,0.63425856,104820.0,104810.0,0.52738782]
[1750354770859,1.19574256,104830.0,104820.0,0.21942257]
[1750354771072,1.27635894,104830.0,104820.0,0.21942257]
[1750354771275,1.26682051,104830.0,104820.0,0.20034326]